{"text_format":"3","workbook":"xlsx","n_sheets":1,"sheets":["Tabelle1"],"not_rendered":{"images":1,"defined_names":1},"read":"whole","date_system":"1900"}

{"sheet":"Tabelle1","index":0,"n_rows":62,"n_cols":4,"rows_kept":62,"merged":[[1,0,1,3],[3,0,3,3],[4,0,4,3],[5,0,5,3],[7,0,7,3],[8,0,8,3],[9,0,9,3],[11,0,11,3],[13,2,13,3],[38,2,38,3],[61,1,61,3]]}
[]
["Einnahmen-Ausgaben-Liste für Ansuchen und Abrechnung"]
[]
["Förderwerber*in:"]
[]
[]
["Geschäftspartnernummer:"]
["Projekttitel / Jahresförderung für das Jahr:"]
[]
[]
[]
["Einnahmen- und Ausgabenseite müssen im Ansuchen ausgeglichen budgetiert sein!\nBei Projektabrechnung sind verpflichtend die budgetierten Zahlen des Ansuchens anzugeben.\nDer Projektabrechnung ist die detaillierte Belegliste der Ausgaben beizulegen.\nBei Bedarf bitte weitere Zeilen einfügen."]
[]
["EINNAHMEN","ANSUCHEN","ABRECHNUNG"]
[null,"Betrag","Betrag","Abweichung in €"]
["1. Subventionen"]
["Bund",0,0,{"$f":"B17-C17","v":0}]
["Land: Abt 2, Ref 2/06 - Jugend, Generationen, Integration",0,0,{"$f":"B18-C18","v":0}]
["Land: weitere Abt….Ref…",0,0,{"$f":"B19-C19","v":0}]
["Stadt",0,0,{"$f":"B20-C20","v":0}]
["weitere…",0,0,{"$f":"B21-C21","v":0}]
[]
["2. Sponsoren"]
["Bezeichnung",0,0,{"$f":"B24-C24","v":0}]
[]
["3. Eigenmittel/Eigenleistung (soweit anrechenbar)"]
["Bezeichnung",0,0,{"$f":"B27-C27","v":0}]
[]
["4. Veranstaltungs-/Eintritts-/Verwertungserlöse"]
["Bezeichnung",0,0,{"$f":"B30-C30","v":0}]
[]
["5. Sonstige Einnahmen (z.B. Mitgliedsbeiträge, etc.)"]
["Bezeichnung",0,0,{"$f":"B33-C33","v":0}]
[]
["Summe",{"$f":"SUM(B16:B34)","v":0},{"$f":"SUM(C16:C34)","v":0},{"$f":"SUM(D17:D34)","v":0}]
[]
[]
[]
["AUSGABEN","ANSUCHEN","ABRECHNUNG"]
["Gliederung nach Kostenbereichen.","Betrag","Betrag","Abweichung in €"]
["1. Personal"]
["Summe",0,0,{"$f":"B42-C42","v":0}]
[]
["2. Sachaufwand zb:"]
["zb. Mietkosten",0,0,{"$f":"B45-C45","v":0}]
[]
[]
["2. Sachaufwand zb:"]
["zb. Fahrtkosten",0,0,{"$f":"B49-C49","v":0}]
["zb. Materialkosten",0,0,0]
["zb. weitere Bezeichnung…",0,0,{"$f":"B51-C51","v":0}]
[]
[]
["Summe",{"$f":"SUM(B42:B53)","v":0},{"$f":"SUM(C42:C53)","v":0},{"$f":"SUM(D42:D53)","v":0}]
[]
[]
[]
["Die Richtigkeit der Angaben wird bestätigt:"]
[]
[]
[]
[null,"Stempel und Unterschrift des zuständigen Organs"]